bitfinex-derivatives/quotes_SOLF0:USTF0_20260312
["timestamp","ask_amount","ask_price","bid_price","bid_amount"]
[1773293485333,3.69302899,84.909,84.875,10.603]
[1773293485528,3.69302899,84.92,84.876,1.65396685]
[1773293485726,2.58861619,84.93,84.887,1.65396685]
[1773293485926,9.25717433,84.929,84.887,1.65396685]
[1773293486131,3.69302899,84.932,84.887,1.65396685]
[1773293486132,9.25717433,84.928,84.887,1.65396685]
[1773293486433,3.69302899,84.932,84.887,1.65396685]
[1773293486632,3.69302899,84.932,84.831,21.217]
[1773293486633,3.69302899,84.932,84.891,1.65152291]
[1773293487333,3.69302899,84.932,84.896,1.65152291]
[1773293488434,3.69302899,84.932,84.899,10.6]
[1773293493238,2.58861619,84.93,84.888,10.601]
[1773293493434,3.69302899,84.929,84.888,10.601]
[1773293493637,3.69302899,84.929,84.89,10.601]
[1773293494334,3.69302899,84.929,84.891,1.6468826]
[1773293497440,3.69302899,84.929,84.893,10.601]
[1773293498342,3.69302899,84.929,84.897,1.64464731]
[1773293499442,3.69302899,84.929,84.9,10.6]
[1773293502147,3.87484323,84.939,84.9,12.63346045]
[1773293509252,3.87484323,84.939,84.9,2.03346045]
[1773293513157,3.87484323,84.939,84.901,1.98585274]
[1773293514363,3.87484323,84.939,84.904,10.599]
[1773293517462,3.87484323,84.939,84.904,12.57731003]
[1773293519259,3.87484323,84.939,84.904,1.97831003]
[1773293519464,3.88336215,84.929,84.892,1.97864859]
[1773293519659,2.58861619,84.92,84.892,1.97864859]
[1773293520060,3.88336215,84.919,84.881,1.97864859]
[1773293520865,3.88336215,84.909,84.855,1.95826596]
[1773293521071,3.88336215,84.899,84.855,1.95826596]
[1773293521464,3.88336215,84.899,84.862,10.604]
[1773293522861,2.58861619,84.91,84.866,1.94134379]
[1773293523466,3.88336215,84.919,84.88,10.602]
[1773293524067,2.58861619,84.91,84.878,1.94134379]
[1773293524472,6.47197834,84.91,84.878,1.94134379]
[1773293526875,2.58861619,84.92,84.879,1.93538606]
[1773293527072,3.88336215,84.918,84.879,1.93538606]
[1773293527772,2.58861619,84.91,84.879,1.93538606]
[1773293529477,6.47197834,84.91,84.879,1.93538606]
[1773293529678,3.88336215,84.909,84.871,10.603]
[1773293530071,14.46627365,84.95,84.854,198.93773088]
[1773293530072,3.88336215,84.889,84.854,198.93773088]
[1773293530770,3.88336215,84.889,84.854,200.84076829]
[1773293531371,3.88336215,84.889,84.855,10.605]
[1773293534177,2.58861619,84.9,84.854,200.84076829]
[1773293534178,2.58861619,84.91,84.862,1.89846584]
[1773293534378,6.47197834,84.91,84.862,1.89846584]
[1773293534578,3.88336215,84.909,84.862,1.89846584]
[1773293534782,3.88336215,84.909,84.873,1.90926518]
[1773293539382,3.88336215,84.909,84.874,10.603]
[1773293541582,3.88336215,84.909,84.879,10.602]
[1773293544891,3.88336215,84.909,84.875,1.51388184]
[1773293547494,3.88336215,84.909,84.87,10.603]
[1773293553101,3.97085183,84.908,84.866,10.604]
[1773293553396,3.97085183,84.908,84.87,10.603]
[1773293553600,3.97085183,84.908,84.867,1.45544296]
[1773293554404,3.97085183,84.908,84.868,12.05944296]
[1773293555704,3.97085183,84.908,84.87,10.603]
[1773293557902,3.97085183,84.908,84.871,1.44950037]
[1773293559504,3.97085183,84.929,84.871,1.44950037]
[1773293559702,3.97085183,84.927,84.871,1.44950037]
[1773293559904,3.97085183,84.925,84.871,1.44950037]
[1773293560102,3.97085183,84.923,84.871,1.44950037]
[1773293560302,3.97085183,84.921,84.871,1.44950037]
[1773293560507,3.97085183,84.919,84.88,12.0509565]
[1773293561200,3.97085183,84.917,84.88,12.0509565]
[1773293563211,3.72659607,84.915,84.88,12.0509565]
[1773293569617,3.72659607,84.915,84.881,1.50707677]
[1773293572319,9.26140875,84.914,84.881,1.50707677]
[1773293572519,9.26143419,84.913,84.881,1.50707677]
[1773293572814,3.72659607,84.915,84.881,1.50707677]
[1773293572815,9.26143419,84.912,84.881,1.50707677]
[1773293573018,3.72659607,84.915,84.881,1.50707677]
[1773293573219,9.26042088,84.914,84.881,1.50707677]
[1773293573516,9.26042088,84.913,84.881,1.50707677]
[1773293573718,9.26042088,84.912,84.881,1.50707677]
[1773293573914,3.72659607,84.915,84.885,1.87956141]
[1773293574114,3.7775144,84.929,84.885,1.87956141]
[1773293574318,3.7775144,84.927,84.885,1.87956141]
[1773293574518,13.03765506,84.926,84.894,10.6]
[1773293574716,3.7775144,84.943,84.901,1.88362767]
[1773293574914,21.79346586,84.969,84.854,198.93773088]
[1773293574915,3.7775144,84.962,84.911,1.88362767]
[1773293575111,3.7775144,84.962,84.868,21.208]
[1773293575112,3.7775144,84.962,84.931,10.596]
[1773293575310,3.7775144,84.962,84.925,1.88362767]
[1773293578024,3.7775144,84.959,84.913,1.87989046]
[1773293579314,3.7775144,84.959,84.907,10.599]
[1773293579523,3.7775144,84.959,84.908,1.9181332]
[1773293579724,3.7775144,84.959,84.894,37.08]
[1773293579725,3.7775144,84.959,84.911,1.9181332]
[1773293581319,3.7775144,84.959,84.894,37.08]
[1773293581320,3.7775144,84.959,84.921,1.91655687]
[1773293581714,3.7775144,84.959,84.926,12.51255687]
[1773293583225,3.7775144,84.959,84.926,1.91655687]
[1773293585725,3.7775144,84.959,84.931,10.596]
[1773293586725,3.7775144,84.981,84.938,1.9096912]
[1773293586919,3.7775144,84.979,84.938,1.9096912]
[1773293588027,3.7775144,84.979,84.939,1.9096912]
[1773293588528,3.7775144,84.979,84.941,1.9096912]
[1773293589326,3.7775144,84.979,84.944,10.594]
[1773293590720,3.7775144,84.995,84.947,1.90014347]
[1773293590923,3.7775144,84.995,84.951,1.90014347]
[1773293591124,3.7775144,84.979,84.94,1.90014347]
[1773293591324,3.7775144,84.969,84.921,1.90014347]
[1773293592331,3.7775144,84.969,84.929,10.596]
[1773293592725,3.7775144,84.959,84.929,10.596]
[1773293598034,3.7775144,84.959,84.921,1.90014347]
[1773293598243,3.7775144,84.949,84.903,1.9308764]
[1773293598937,3.7775144,84.949,84.906,10.599]
[1773293599135,3.7775144,84.939,84.906,10.599]
[1773293600836,37.06,84.967,84.866,37.06]
[1773293600837,4.04960892,84.929,84.884,1.95472462]
[1773293602444,4.04960892,84.929,84.887,1.95472462]
[1773293603443,4.04960892,84.929,84.888,10.601]
[1773293612843,4.04960892,84.929,84.888,12.60288473]
[1773293613651,4.04960892,84.929,84.888,2.00188473]
[1773293616449,4.04960892,84.919,84.883,10.602]
[1773293616949,4.04960892,84.919,84.883,12.61076968]
[1773293617150,4.04960892,84.919,84.862,37.08]
[1773293617151,4.04960892,84.919,84.889,2.00876968]
[1773293618155,6.63731159,84.94,84.892,2.00876968]
[1773293618751,4.04960892,84.939,84.892,2.00876968]
[1773293619457,4.04960892,84.949,84.901,2.00602048]
[1773293620559,4.04960892,84.949,84.913,2.00602048]
[1773293621458,4.04960892,84.939,84.904,10.599]
[1773293623254,4.04960892,84.939,84.895,10.6]
[1773293624267,4.04960892,84.939,84.891,1.99936913]
[1773293624268,3.79693468,84.936,84.891,1.99936913]
[1773293625369,3.79693468,84.936,84.893,10.6]
[1773293626067,3.79693468,84.936,84.891,1.99936913]
[1773293627466,3.79693468,84.936,84.901,12.56902065]
[1773293627666,3.79693468,84.936,84.902,1.96902065]
[1773293627867,3.79693468,84.947,84.902,1.96902065]
[1773293628066,3.79693468,84.947,84.904,1.96902065]
[1773293629370,3.79693468,84.947,84.906,10.599]
[1773293631670,3.79693468,84.947,84.906,12.5655792]
[1773293633471,3.96944571,84.958,84.916,1.97004936]
[1773293633967,3.96944571,84.949,84.916,1.97004936]
[1773293636073,3.96944571,84.949,84.91,10.598]
[1773293637272,3.96944571,84.949,84.91,12.5660195]
[1773293638069,3.96944571,84.949,84.91,10.598]
[1773293638276,3.96944571,84.949,84.911,1.9680195]
[1773293640175,3.96944571,84.949,84.918,1.96765825]
[1773293646281,3.96944571,84.976,84.921,1.95899591]
[1773293646580,3.96944571,84.974,84.921,1.95899591]
[1773293646774,3.96944571,84.974,84.936,1.96380278]
[1773293646976,3.96944571,84.989,84.936,1.96380278]
[1773293647273,3.96944571,84.987,84.936,1.96380278]
[1773293647469,3.96944571,84.985,84.936,1.96380278]
[1773293647674,3.96944571,84.985,84.94,1.96380278]
[1773293648376,3.96944571,84.985,84.942,1.96380278]
[1773293649470,3.96944571,84.985,84.947,1.98352976]
[1773293650868,3.96944571,84.985,84.95,1.97562431]
[1773293654481,3.96944571,84.985,84.939,10.595]
[1773293654682,3.96944571,84.985,84.94,1.97522699]
[1773293655985,3.96944571,84.985,84.941,1.97522699]
[1773293656376,3.96944571,84.985,84.945,10.594]
[1773293656577,3.96944571,84.985,84.946,1.97522699]
[1773293660081,3.83821801,84.998,84.948,1.97484886]
[1773293660477,3.83821801,84.989,84.948,1.97484886]
[1773293661383,3.83821801,84.989,84.953,10.593]
[1773293664984,3.83821801,84.987,84.948,1.97484886]
[1773293665693,3.83821801,84.987,84.95,1.98406162]
[1773293666389,6.42240228,85.0,84.954,1.98406162]
[1773293666586,285.83313813,85.013,84.954,1.98406162]
[1773293666587,3.83821801,85.011,84.954,1.98406162]
[1773293666786,2.58418427,85.01,84.954,1.98406162]
[1773293667084,3.83821801,85.009,84.954,1.98406162]
[1773293667291,3.83821801,85.009,84.964,1.98639761]
[1773293668494,3.83821801,85.009,84.966,1.98639761]
[1773293670392,3.83821801,85.009,84.971,10.591]
[1773293670597,285.83313813,85.013,84.972,1.99194422]
[1773293670791,3.83821801,85.023,84.981,1.99049636]
[1773293670991,3.83821801,85.034,84.981,1.99049636]
[1773293671885,2.58418427,85.03,84.981,1.99049636]
[1773293672084,3.83821801,85.029,84.987,1.99049636]
[1773293678000,3.83821801,85.041,84.991,1.9943904]
[1773293678207,3.83821801,85.039,84.991,1.9943904]
[1773293678898,3.83821801,85.039,84.994,10.588]
[1773293679094,2.04687822,85.067,84.948,35.33]
[1773293679095,3.83821801,85.029,84.971,1.9974341]
[1773293679903,2.58418427,85.04,84.993,1.9974341]
[1773293680103,3.83821801,85.039,84.993,1.9974341]
[1773293680299,2.58418427,85.03,84.993,1.9974341]
[1773293683307,3.83821801,85.039,84.996,1.99422242]
[1773293684201,2.04687822,85.067,84.961,37.04]
[1773293684202,3.94903334,85.05,84.999,1.97706429]
[1773293684407,3.94903334,85.039,84.999,1.97706429]
[1773293689211,3.94903334,85.029,84.999,1.97706429]
[1773293690309,3.94903334,85.029,84.992,10.588]
[1773293690504,3.84239403,85.019,84.984,1.99416357]
[1773293692311,3.84239403,85.019,84.973,1.97683071]
[1773293692611,3.84239403,85.009,84.973,1.97683071]
[1773293694112,3.84239403,85.009,84.963,1.98165068]
[1773293694518,10.98290831,85.058,84.934,37.04]
[1773293694519,3.84239403,84.999,84.941,1.98165068]
[1773293695417,3.84239403,84.999,84.952,1.97369429]
[1773293696412,3.84239403,84.999,84.956,12.56669429]
[1773293697117,3.84239403,84.989,84.956,1.97369429]
[1773293697810,3.84239403,84.989,84.947,10.594]
[1773293698014,3.84239403,84.989,84.942,1.95772564]
[1773293698415,3.84239403,84.979,84.942,1.95772564]
[1773293699115,3.84239403,84.979,84.938,10.595]
[1773293699516,3.84239403,84.979,84.94,10.595]
[1773293699715,3.84239403,84.979,84.941,1.95221352]
[1773293702017,3.84239403,84.979,84.943,12.55961537]
[1773293702421,3.84239403,84.979,84.944,1.96561537]
[1773293702722,3.84239403,84.989,84.946,1.96561537]
[1773293703313,3.84239403,84.989,84.947,10.594]
[1773293703520,3.84239403,84.989,84.948,1.9702283]
[1773293705125,3.84239403,84.999,84.953,1.96156374]
[1773293706331,3.84239403,84.999,84.957,1.96156374]
[1773293707324,3.84239403,84.999,84.958,10.592]
[1773293707733,3.84239403,84.999,84.959,1.97385832]
[1773293708233,3.84239403,84.999,84.963,10.592]
[1773293708732,3.84239403,84.999,84.967,1.98576239]
[1773293710435,3.84239403,85.013,84.976,10.59]
[1773293713635,3.84239403,84.999,84.953,2.29640983]
[1773293714031,3.84239403,84.999,84.96,10.592]
[1773293715536,3.84239403,84.998,84.953,2.29640983]
[1773293716133,3.84239403,84.989,84.947,10.594]
[1773293716338,3.84239403,84.989,84.942,2.29440349]
[1773293716539,3.84239403,84.979,84.942,2.29440349]
[1773293717438,3.84239403,84.979,84.945,2.29033338]
[1773293723742,3.84239403,84.979,84.944,10.594]
[1773293723949,4.07069877,84.969,84.921,2.35428373]
[1773293725351,4.07069877,84.959,84.924,10.597]
[1773293731955,4.07069877,84.959,84.924,12.93470866]
[1773293732556,4.07069877,84.959,84.924,10.597]
[1773293733154,4.07069877,84.949,84.914,10.598]
[1773293735163,4.07069877,84.939,84.903,12.94232569]
[1773293747061,4.07069877,84.939,84.903,2.34332569]
[1773293747272,4.07069877,84.939,84.896,2.32707155]
[1773293748569,4.07069877,84.939,84.898,2.32707155]
[1773293750262,4.07069877,84.939,84.901,2.33135462]
[1773293751466,4.07069877,84.939,84.904,12.93109224]
[1773293751673,4.07069877,84.939,84.905,2.33209224]
[1773293753374,4.07069877,84.939,84.908,10.599]
[1773293754477,4.07069877,84.939,84.905,2.33209224]
[1773293763383,3.71876415,84.948,84.909,2.28214306]
[1773293764480,3.71876415,84.948,84.91,10.598]
[1773293764776,3.71876415,84.948,84.91,12.8822861]
[1773293765482,3.71876415,84.948,84.911,2.2842861]
[1773293767482,3.71876415,84.969,84.915,2.28295219]
[1773293767784,3.71876415,84.967,84.915,2.28295219]
[1773293767982,2.58609649,84.97,84.915,2.28295219]
[1773293767983,3.71876415,84.965,84.915,2.28295219]
[1773293768184,3.71876415,84.963,84.915,2.28295219]
[1773293768386,3.71876415,84.961,84.916,10.598]
[1773293768585,3.71876415,84.959,84.916,10.598]
[1773293768786,3.71876415,84.957,84.916,12.89632458]
[1773293769287,3.71876415,84.955,84.916,12.89632458]
[1773293771280,3.71876415,84.953,84.916,12.89632458]
[1773293771681,3.71876415,84.953,84.917,2.29889535]
[1773293779396,3.71876415,84.953,84.921,10.597]
[1773293780490,2.58609649,84.95,84.917,2.29889535]
[1773293780696,4.0166533,84.949,84.917,2.29889535]
[1773293784594,4.0166533,84.949,84.918,10.597]
[1773293784896,4.0166533,84.949,84.919,2.28358951]
[1773293792299,4.0166533,84.949,84.91,12.89102304]
[1773293793207,4.0166533,84.949,84.911,2.2909789]
[1773293798402,4.0166533,84.949,84.914,10.598]
[1773293799411,4.0166533,84.949,84.916,10.598]
[1773293802107,4.0166533,84.949,84.915,2.29300458]
[1773293803405,3.6993318,84.939,84.897,2.28181782]
[1773293803606,3.6993318,84.929,84.897,2.28181782]
[1773293803910,3.6993318,84.929,84.888,39.34181782]
[1773293806112,3.6993318,84.929,84.889,2.28253618]
[1773293807012,3.6993318,84.919,84.889,2.28253618]
[1773293810607,3.6993318,84.919,84.883,198.82528766]
[1773293814606,3.94118421,84.909,84.883,198.82528766]
[1773293815415,3.94118421,84.909,84.872,2.30412757]
[1773293823318,3.94118421,84.907,84.872,2.30412757]
[1773293823520,3.94118421,84.899,84.866,10.604]
[1773293825219,3.94118421,84.899,84.863,2.3194516]
[1773293827024,14.54118421,84.899,84.863,2.3194516]
[1773293827326,3.94118421,84.898,84.863,2.3194516]
[1773293831318,3.94118421,84.909,84.865,2.30600513]
[1773293832319,3.94118421,84.909,84.867,2.30600513]
[1773293834227,3.94118421,84.919,84.872,2.30778986]
[1773293834427,3.94118421,84.929,84.881,2.30778986]
[1773293835230,3.94118421,84.929,84.885,2.27572475]
[1773293840135,3.71321283,84.949,84.891,2.73432327]
[1773293840337,3.71321283,84.947,84.891,2.73432327]
[1773293841334,3.71321283,84.945,84.894,2.750821]
[1773293842435,3.71321283,84.943,84.894,2.750821]
[1773293842738,2.58625653,84.96,84.901,2.59452757]
[1773293842938,3.71321283,84.958,84.901,2.59452757]
[1773293843231,3.71321283,84.956,84.901,2.59452757]
[1773293844337,12.94062092,84.955,84.909,10.599]
[1773293844527,3.71321283,84.955,84.91,2.59452757]
[1773293844727,3.71321283,84.968,84.921,2.59452757]
[1773293844933,3.71321283,84.966,84.921,2.59452757]
[1773293846338,3.71321283,84.966,84.923,2.69649373]
[1773293847531,3.71321283,84.959,84.914,10.598]
[1773293847732,3.71321283,84.949,84.904,2.60367497]
[1773293848438,3.71321283,84.949,84.907,2.60367497]
[1773293849540,3.71321283,84.949,84.908,10.599]
[1773293851332,3.71321283,84.949,84.908,13.15074753]
[1773293852636,3.71321283,84.949,84.909,2.55174753]
[1773293854141,3.71321283,84.949,84.9,2.58631014]
[1773293854336,3.71321283,84.949,84.9,2.55200367]
[1773293855335,3.71321283,84.947,84.902,2.75415069]
[1773293856740,3.71321283,84.947,84.911,2.75615929]
[1773293857038,3.71321283,84.955,84.911,2.75615929]
[1773293858340,3.71321283,84.955,84.914,10.598]
[1773293862245,3.71321283,84.955,84.914,12.94850175]
[1773293863845,3.71321283,84.955,84.915,2.35187724]
[1773293868050,3.74825405,84.948,84.915,2.35187724]
[1773293876664,3.86147787,84.969,84.917,2.36323236]
[1773293877554,3.86147787,84.969,84.927,2.37103216]
[1773293881759,3.86147787,84.966,84.917,13.06451613]
[1773293881961,3.86147787,84.959,84.917,13.06451613]
[1773293882662,3.86147787,84.959,84.919,10.597]
[1773293885766,3.86147787,84.959,84.92,2.46188856]
[1773293891568,3.86147787,84.959,84.922,2.45792354]
[1773293891873,3.86147787,84.974,84.922,2.45792354]
[1773293892172,13.13741372,84.973,84.931,2.45792354]
[1773293892375,9.27593585,84.972,84.931,2.45792354]
[1773293892672,9.27593585,84.971,84.931,2.45792354]
[1773293892873,9.27593585,84.97,84.931,2.45792354]
[1773293893074,3.86147787,84.973,84.931,2.45792354]
[1773293893373,3.86147787,84.973,84.93,2.58631014]
[1773293893374,9.27416332,84.972,84.941,2.4549579]
[1773293893576,9.27416332,84.971,84.941,2.4549579]
[1773293893869,3.86147787,84.973,84.941,2.4549579]
[1773293894071,9.27172812,84.972,84.941,2.4549579]
[1773293894271,9.27172812,84.971,84.941,2.4549579]
[1773293894572,3.86147787,84.973,84.941,2.4549579]
[1773293894772,9.27043972,84.972,84.941,2.4549579]
[1773293894969,3.86147787,84.984,84.943,2.45225673]
[1773293895175,3.86147787,84.994,84.951,2.45225673]
[1773293895871,3.86147787,84.994,84.955,2.45225673]
[1773293897968,3.86147787,84.994,84.958,2.44622552]
[1773293900371,3.86147787,84.994,84.958,13.03822552]
[1773293901878,3.86147787,84.994,84.961,10.592]
[1773293902072,3.86147787,84.994,84.961,13.03545502]
[1773293902273,3.86147787,84.994,84.962,2.44345502]
[1773293906476,2.04773337,85.027,84.913,199.65468468]
[1773293906477,3.74257558,85.019,84.971,2.44214277]
[1773293907170,3.74257558,85.019,84.983,2.44176697]
[1773293907879,3.74257558,85.036,84.991,2.44176697]
[1773293908073,3.74257558,85.029,84.991,2.44176697]
[1773293910081,3.74257558,85.029,84.993,12.98268889]
[1773293910383,3.74257558,85.029,84.994,2.39468889]
[1773293913587,3.74257558,85.039,84.997,2.38191624]
[1773293914181,3.74257558,85.039,85.002,2.38191624]
[1773293914382,3.74257558,85.049,85.002,2.38191624]
[1773293915483,3.74257558,85.049,85.006,2.38541479]
[1773293918884,288.05672256,85.064,85.011,2.13590944]
[1773293918885,6.32385538,85.06,85.011,2.13590944]
[1773293919285,3.74257558,85.059,85.011,2.13590944]
[1773293919890,3.74257558,85.059,85.014,2.13590944]
[1773293921289,3.74257558,85.059,85.018,2.13278351]
[1773293923989,3.74257558,85.059,85.02,2.12321738]
[1773293925490,3.74257558,85.059,85.023,10.584]
[1773293926594,3.74257558,85.059,85.024,2.12042923]
[1773293926799,3.90860281,85.049,85.014,2.12439733]
[1773293926993,3.90860281,85.049,84.991,2.12439733]
[1773293927394,3.90860281,85.049,85.009,10.586]
[1773293929389,3.90860281,85.049,85.009,12.74966146]
[1773293932005,37.02,85.082,84.991,2.16892406]
[1773293932006,4.02594401,85.039,84.991,2.16892406]
[1773293932602,4.02594401,85.036,84.992,12.75692406]
[1773293932796,4.02594401,85.036,84.993,2.16892406]
[1773293933200,4.02594401,85.036,84.995,10.588]
[1773293933397,4.02594401,85.029,84.971,2.15784781]
[1773293933704,4.02594401,85.019,84.971,2.15784781]
[1773293934200,4.02594401,85.039,84.995,2.15784781]
[1773293934898,4.02594401,85.039,85.007,2.60585837]
[1773293935297,4.02594401,85.059,85.007,2.60585837]
[1773293936202,4.02594401,85.049,85.007,2.60585837]
[1773293938206,4.02594401,85.049,85.008,10.586]
[1773293939202,4.02594401,85.049,85.0,2.59446017]
[1773293939499,4.02594401,85.049,85.006,10.586]
[1773293939705,4.02594401,85.049,85.007,2.59446017]
[1773293940404,4.02594401,85.049,85.008,10.586]
[1773293949111,4.02594401,85.049,85.008,13.211333]
[1773293949312,4.02594401,85.049,85.014,10.585]
[1773293950911,4.02594401,85.049,85.015,2.62657066]
[1773293951113,4.02594401,85.049,85.017,2.62657066]
[1773293952212,4.02594401,85.069,85.029,10.584]
[1773293952408,9.22520951,85.068,85.03,2.62657066]
[1773293952611,4.02594401,85.069,85.03,2.62657066]
[1773293953419,4.02594401,85.069,85.032,2.63008606]
[1773293957814,4.02594401,85.069,85.031,10.583]
[1773293958014,4.02594401,85.049,85.014,10.585]
[1773293958516,4.02594401,85.049,85.011,2.58713667]
[1773293960523,4.02594401,85.049,85.012,10.586]
[1773293961822,4.02594401,85.049,84.99,2.5812798]
[1773293961823,6.56051482,85.04,85.004,10.587]
[1773293962616,3.97923502,85.04,85.012,10.586]
[1773293965827,2.5812798,85.05,85.017,10.585]
[1773293966027,6.56051482,85.05,85.017,10.585]
[1773293966223,3.97923502,85.049,84.998,2.72649834]
[1773293966623,3.97923502,85.039,84.998,2.72649834]
[1773293967322,3.97923502,85.039,85.007,10.586]
[1773293967518,3.97923502,85.029,84.987,2.7268451]
[1773293968428,3.97923502,85.029,84.99,2.7268451]
[1773293969426,3.97923502,85.029,84.992,13.3180524]
[1773293973127,3.97923502,85.029,84.993,2.72307008]
[1773293974422,3.97923502,85.029,84.996,2.72307008]
[1773293978031,3.97923502,85.029,84.999,10.587]
[1773293984130,3.97923502,85.029,84.992,10.588]
[1773293984331,3.97923502,85.029,84.983,3.13853534]
[1773293984934,3.97923502,85.029,84.991,3.1318814]
[1773293986431,3.97923502,85.029,84.994,3.1318814]
[1773293990836,4.21155124,85.038,84.998,2.6942382]
[1773293991639,4.21155124,85.038,85.001,2.6942382]
[1773293994031,4.21155124,85.049,85.004,2.69283574]
[1773293994232,4.21155124,85.069,85.011,2.69283574]
[1773293994432,4.21155124,85.067,85.011,2.69283574]
[1773293994638,4.21155124,85.065,85.011,2.69283574]
[1773293995337,4.21155124,85.065,85.019,2.69540625]
[1773293996639,2.58127987,85.06,85.019,2.69540625]
[1773293997045,4.21155124,85.059,85.024,10.584]
[1773293999237,4.21155124,85.059,85.019,2.69540625]
[1773294000845,4.21155124,85.049,85.016,2.68459434]
[1773294002340,4.21155124,85.049,85.008,2.68459434]
[1773294002646,2.58127987,85.03,84.997,2.68459434]
[1773294002847,4.21155124,85.039,84.997,2.68459434]
[1773294003349,4.21155124,85.049,85.007,2.66761627]
[1773294003542,9.2409949,85.048,85.007,2.66761627]
[1773294003745,4.21155124,85.049,85.007,2.66761627]
[1773294003944,13.45254512,85.048,85.007,2.66761627]
[1773294004147,4.21155124,85.048,85.007,2.66761627]
[1773294004349,4.21155124,85.048,85.009,2.66761627]
[1773294005450,13.45363489,85.047,85.009,2.66761627]
[1773294005654,4.21155124,85.039,85.0,10.587]
[1773294006048,4.21155124,85.039,85.0,13.2471012]
[1773294006242,4.21155124,85.039,85.002,10.587]
[1773294006642,4.21155124,85.039,85.002,13.2471012]
[1773294007244,4.21155124,85.039,85.003,2.65583444]
[1773294008247,4.21155124,85.039,85.002,10.587]
[1773294008647,4.21155124,85.029,84.994,10.588]
[1773294010656,4.21155124,85.029,84.984,10.589]
[1773294010859,4.21155124,85.029,84.985,2.65431172]
[1773294011252,4.21155124,85.026,84.985,2.65431172]
[1773294013458,4.21155124,85.026,84.995,10.588]
[1773294015453,4.21155124,85.026,84.988,2.62609674]
[1773294019564,4.21155124,85.026,84.992,13.21230782]
[1773294021167,4.21155124,85.026,84.993,2.63292368]
[1773294023771,3.96255443,85.036,84.996,2.63664653]
[1773294025460,3.96255443,85.051,85.001,2.63760692]
[1773294025663,3.96255443,85.049,85.001,2.63760692]
[1773294027265,3.96255443,85.039,85.001,2.63760692]
[1773294028265,3.96255443,85.039,85.002,10.587]
[1773294030070,3.96255443,85.039,85.002,13.19098724]
[1773294030267,3.96255443,85.039,85.003,2.60398724]
[1773294030865,3.96255443,85.039,85.002,10.587]
[1773294031272,3.96255443,85.039,84.994,2.66743307]
[1773294032070,3.96255443,85.039,84.995,10.588]
[1773294032468,3.96255443,85.039,84.995,13.25543307]
[1773294032771,3.96255443,85.039,84.996,2.66565391]
[1773294035369,3.96255443,85.033,84.996,2.66565391]
[1773294035569,3.96255443,85.059,85.011,2.66610516]
[1773294035873,3.96255443,85.059,85.025,10.584]
[1773294037168,6.54238749,85.07,85.028,2.66256077]
[1773294037369,13.23023837,85.069,85.028,2.66256077]
[1773294037565,9.26768394,85.068,85.028,2.66256077]
[1773294037770,13.23023837,85.067,85.028,2.66256077]
[1773294037969,9.26768394,85.066,85.028,2.66256077]
[1773294038271,3.96255443,85.067,85.028,2.66256077]
[1773294038464,3.96255443,85.065,85.028,2.66256077]
[1773294039076,3.96255443,85.065,85.031,2.59756927]
[1773294039375,3.96255443,85.076,85.031,2.59756927]
[1773294039576,13.23086762,85.075,85.031,2.59756927]
[1773294039874,3.96255443,85.075,85.031,2.59756927]
[1773294040170,3.96255443,85.093,85.041,2.59756927]
[1773294040369,21.83735362,85.125,85.041,2.59756927]
[1773294040370,3.96255443,85.089,85.041,2.59756927]
[1773294040570,3.96255443,85.087,85.041,2.59756927]
[1773294041173,2.57983306,85.08,85.041,2.59756927]
[1773294041374,3.96255443,85.087,85.041,2.59756927]
[1773294043775,3.96255443,85.087,85.044,2.6196094]
[1773294045072,3.96255443,85.087,85.047,2.63045054]
[1773294045277,3.77736917,85.099,85.047,2.63045054]
[1773294045473,3.77736917,85.099,85.05,2.57983306]
[1773294045683,3.77736917,85.099,85.051,2.63045054]
[1773294047072,3.77736917,85.099,85.041,10.582]
[1773294047073,3.77736917,85.089,85.041,10.582]
[1773294048477,3.77736917,85.089,85.041,13.20755747]
[1773294049478,3.77736917,85.089,85.045,2.63965146]
[1773294050370,3.77736917,85.089,85.05,2.23852882]
[1773294053483,3.77736917,85.089,85.05,4.81836188]
[1773294056882,3.77736917,85.089,85.058,10.58]
[1773294057084,3.77736917,85.089,85.06,2.57983306]
[1773294057283,3.77736917,85.089,85.059,2.27171432]
[1773294058284,145.61740012,85.359,85.014,37.0]
[1773294058285,3.73391304,85.122,85.08,2.57983306]
[1773294058486,3.73391304,85.119,85.065,2.27171432]
[1773294058990,3.73391304,85.119,85.068,2.2376789]
[1773294059187,3.73391304,85.119,85.027,37.0]
[1773294059188,3.73391304,85.119,85.071,2.2376789]
[1773294059885,3.73391304,85.119,85.083,2.2376789]
[1773294060282,3.73391304,85.13,85.091,2.2376789]
[1773294061387,3.73391304,85.129,85.08,2.43809911]
[1773294061690,3.73391304,85.119,85.067,2.43809911]
[1773294063390,3.73391304,85.119,85.071,2.71968146]
[1773294064392,3.73391304,85.118,85.071,2.71968146]